fUST/lending_fUST_20250806
["ID","MTS","AMOUNT","RATE_DAILY","PERIOD"]
[377438445,1754413843699,-1815.42,0.00028493,2]
[377438446,1754413843708,-1356.54,0.00028493,2]
[377438447,1754413843717,-460.0,0.00028493,2]
[377438448,1754413843726,-41146.1,0.00028493,2]
[377438449,1754413843736,-460.0,0.00028493,2]
[377438450,1754413843745,-579.48,0.00028493,2]
[377438451,1754413843754,-460.0,0.00028493,2]
[377438452,1754413843764,-492.63,0.00028493,2]
[377438453,1754413843775,-460.0,0.00028493,2]
[377438454,1754413843785,-460.0,0.00028493,2]
[377438455,1754413843794,-460.0,0.00028493,2]
[377438456,1754413843804,-863.0,0.00028493,2]
[377438457,1754413843814,-460.0,0.00028493,2]
[377438458,1754413843822,-460.0,0.00028493,2]
[377438459,1754413843832,-1085.24,0.00028493,2]
[377438460,1754413843841,-845.72,0.00028493,2]
[377438461,1754413843850,-460.0,0.00028493,2]
[377438462,1754413843860,-1266.46,0.00028493,2]
[377438463,1754413843869,-753.0,0.00028493,2]
[377438464,1754413843878,-460.0,0.00028493,2]
[377438465,1754413843888,-460.0,0.00028493,2]
[377438466,1754413843897,-250.27,0.00028493,2]
[377438467,1754413843906,-523.58,0.00028493,2]
[377438468,1754413843915,-488.09,0.00028493,2]
[377438469,1754413843924,-460.0,0.00028493,2]
[377438470,1754413843933,-460.0,0.00028493,2]
[377438471,1754413843942,-179.63204432,0.00028493,2]
[377438472,1754413843951,-460.0,0.00028493,2]
[377438473,1754413843960,-460.0,0.00028493,2]
[377438474,1754413843970,-460.0,0.00028493,2]
[377438475,1754413843979,-718.72,0.00028493,2]
[377438476,1754413843989,-460.0,0.00028493,2]
[377438477,1754413843999,-460.0,0.00028493,2]
[377438478,1754413844010,-460.0,0.00028493,2]
[377438479,1754413844019,-504.77,0.00028493,2]
[377438480,1754413844028,-460.0,0.00028493,2]
[377438481,1754413844037,-888.53,0.00028493,2]
[377438482,1754413844048,-460.0,0.00028493,2]
[377438483,1754413844059,-460.0,0.00028493,2]
[377438484,1754413844068,-460.0,0.00028493,2]
[377438485,1754413844083,-514.29,0.00028493,2]
[377438486,1754413844093,-420.0,0.00028616,2]
[377438487,1754413844102,-420.0,0.00028616,2]
[377438488,1754413844111,-347.0,0.00028617,2]
[377438489,1754413844121,-788.0,0.00028618,2]
[377438490,1754413844130,-1680.0,0.00028744,2]
[377438491,1754413844139,-674.82,0.00028767,2]
[377438492,1754413844148,-1651.69,0.00028767,2]
[377438493,1754413844158,-460.0,0.00028767,2]
[377438494,1754413844167,-560.55,0.00028767,2]
[377438495,1754413844176,-535.6,0.00028767,2]
[377438496,1754413844185,-1815.42,0.00028767,2]
[377438497,1754413844194,-1356.54,0.00028767,2]
[377438498,1754413844203,-460.0,0.00028767,2]
[377438499,1754413844212,-41146.1,0.00028767,2]
[377438500,1754413844221,-460.0,0.00028767,2]
[377438501,1754413844230,-579.48,0.00028767,2]
[377438502,1754413844239,-460.0,0.00028767,2]
[377438503,1754413844249,-492.63,0.00028767,2]
[377438504,1754413844258,-460.0,0.00028767,2]
[377438505,1754413844267,-460.0,0.00028767,2]
[377438506,1754413844277,-460.0,0.00028767,2]
[377438507,1754413844286,-863.0,0.00028767,2]
[377438508,1754413844297,-460.0,0.00028767,2]
[377438509,1754413844306,-460.0,0.00028767,2]
[377438510,1754413844316,-1085.24,0.00028767,2]
[377438511,1754413844326,-845.72,0.00028767,2]
[377438512,1754413844335,-460.0,0.00028767,2]
[377438513,1754413844344,-1266.46,0.00028767,2]
[377438514,1754413844353,-753.0,0.00028767,2]
[377438515,1754413844362,-460.0,0.00028767,2]
[377438516,1754413844371,-569.60478979,0.00028767,2]
[377438517,1754413844380,-523.58,0.00028767,2]
[377438518,1754413844389,-488.09,0.00028767,2]
[377438519,1754413844399,-231.67,0.00028767,2]
[377438520,1754413844408,-460.0,0.00028767,2]
[377438521,1754413844417,-460.0,0.00028767,2]
[377438522,1754413844426,-460.0,0.00028767,2]
[377438523,1754413844435,-718.72,0.00028767,2]
[377438524,1754413844444,-460.0,0.00028767,2]
[377438525,1754413844454,-460.0,0.00028767,2]
[377438526,1754413844463,-460.0,0.00028767,2]
[377438527,1754413844472,-460.0,0.00028767,2]
[377438528,1754413844480,-504.77,0.00028767,2]
[377438529,1754413844490,-460.0,0.00028767,2]
[377438530,1754413844499,-888.53,0.00028767,2]
[377438531,1754413844509,-460.0,0.00028767,2]
[377438532,1754413844521,-460.0,0.00028767,2]
[377438533,1754413844530,-460.0,0.00028767,2]
[377438534,1754413844540,-514.29,0.00028767,2]
[377438535,1754413844551,-153.0,0.00028767,30]
[377438536,1754413844560,-578.9513623,0.00028795,30]
[377438537,1754413844569,-292.9155566,0.00028795,30]
[377438538,1754413844578,-292.9155566,0.00028795,30]
[377438539,1754413844587,-292.9155566,0.00028795,30]
[377438540,1754413844596,-292.9155566,0.00028795,30]
[377438541,1754413844606,-235.53823,0.00028806,2]
[377438542,1754413844616,-151.0,0.00028903,2]
[377438543,1754413844625,-151.0,0.00028903,2]
[377438544,1754413844634,-151.0,0.00028903,2]
[377438545,1754413844643,-151.0,0.00028903,2]
[377438546,1754413844652,-151.0,0.00028903,2]
[377438547,1754413844664,-151.00157735,0.00028903,2]
[377438548,1754413844674,-22188.54324152,0.00028903,2]
[377438549,1754413844683,-260.0,0.00028937,2]
[377438550,1754413844693,-1000.0,0.00029016,5]
[377438551,1754413844707,-674.82,0.00029041,2]
[377438552,1754413844716,-1651.69,0.00029041,2]
[377438553,1754413844725,-460.0,0.00029041,2]
[377438554,1754413844735,-560.55,0.00029041,2]
[377438555,1754413844745,-535.6,0.00029041,2]
[377438556,1754413844757,-1815.42,0.00029041,2]
[377438557,1754413844767,-1356.54,0.00029041,2]
[377438558,1754413844777,-460.0,0.00029041,2]
[377438559,1754413844788,-41146.1,0.00029041,2]
[377438560,1754413844798,-460.0,0.00029041,2]
[377438561,1754413844807,-579.48,0.00029041,2]
[377438562,1754413844817,-460.0,0.00029041,2]
[377438563,1754413844826,-492.63,0.00029041,2]
[377438564,1754413844835,-460.0,0.00029041,2]
[377438565,1754413844844,-460.0,0.00029041,2]
[377438566,1754413844854,-460.0,0.00029041,2]
[377438567,1754413844864,-863.0,0.00029041,2]
[377438568,1754413844873,-460.0,0.00029041,2]
[377438569,1754413844882,-460.0,0.00029041,2]
[377438570,1754413844892,-1085.24,0.00029041,2]
[377438571,1754413844902,-845.72,0.00029041,2]
[377438572,1754413844911,-460.0,0.00029041,2]
[377438573,1754413844920,-1266.46,0.00029041,2]
[377438574,1754413844929,-753.0,0.00029041,2]
[377438575,1754413844939,-460.0,0.00029041,2]
[377438576,1754413844948,-523.58,0.00029041,2]
[377438577,1754413844957,-488.09,0.00029041,2]
[377438578,1754413844966,-460.0,0.00029041,2]
[377438579,1754413844976,-460.0,0.00029041,2]
[377438580,1754413844985,-433.79431988,0.00029041,2]
[377438581,1754413844994,-460.0,0.00029041,2]
[377438582,1754413845004,-718.72,0.00029041,2]
[377438583,1754413845013,-460.0,0.00029041,2]
[377438584,1754413845022,-460.0,0.00029041,2]
[377438585,1754413845031,-460.0,0.00029041,2]
[377438586,1754413845041,-504.77,0.00029041,2]
[377438587,1754413845054,-460.0,0.00029041,2]
[377438588,1754413845064,-888.53,0.00029041,2]
[377438589,1754413845073,-460.0,0.00029041,2]
[377438590,1754413845082,-460.0,0.00029041,2]
[377438591,1754413845091,-460.0,0.00029041,2]
[377438592,1754413845199,-514.29,0.00029041,2]
[377438593,1754413845222,-188.480784,0.00029082,2]
[377438594,1754413845231,-2646.97548916,0.00029088,2]
[377438595,1754413845241,-408.0,0.00029097,2]
[377438596,1754413845250,-200.0,0.00029108,15]
[377438597,1754413845260,-300.0,0.00029108,15]
[377438598,1754413845269,-1500.0,0.0002919,7]
[377438599,1754413845279,-971.0,0.00029261,2]
[377438600,1754413845288,-2148.0,0.00029261,2]
[377438601,1754413845299,-636.0,0.00029261,2]
[377438602,1754413845309,-674.82,0.00029315,2]
[377438603,1754413845318,-1651.69,0.00029315,2]
[377438604,1754413845329,-460.0,0.00029315,2]
[377438605,1754413845338,-560.55,0.00029315,2]
[377438606,1754413845349,-535.6,0.00029315,2]
[377438607,1754413845358,-1815.42,0.00029315,2]
[377438608,1754413845368,-1356.54,0.00029315,2]
[377438609,1754413845378,-460.0,0.00029315,2]
[377438610,1754413845387,-460.0,0.00029315,2]
[377438611,1754413845396,-41146.1,0.00029315,2]
[377438612,1754413845405,-579.48,0.00029315,2]
[377438613,1754413845416,-460.0,0.00029315,2]
[377438614,1754413845430,-492.63,0.00029315,2]
[377438615,1754413845450,-460.0,0.00029315,2]
[377438616,1754413845466,-460.0,0.00029315,2]
[377438617,1754413845475,-460.0,0.00029315,2]
[377438618,1754413845485,-863.0,0.00029315,2]
[377438619,1754413845494,-460.0,0.00029315,2]
[377438620,1754413845503,-479.29,0.00029315,2]
[377438621,1754413845513,-1085.24,0.00029315,2]
[377438622,1754413845522,-845.72,0.00029315,2]
[377438623,1754413845532,-460.0,0.00029315,2]
[377438624,1754413845541,-1266.46,0.00029315,2]
[377438625,1754413845553,-753.0,0.00029315,2]
[377438626,1754413845563,-460.0,0.00029315,2]
[377438627,1754413845572,-523.58,0.00029315,2]
[377438628,1754413845581,-488.09,0.00029315,2]
[377438629,1754413845591,-460.0,0.00029315,2]
[377438630,1754413845601,-460.0,0.00029315,2]
[377438631,1754413845611,-460.0,0.00029315,2]
[377438632,1754413845620,-718.72,0.00029315,2]
[377438633,1754413845630,-460.0,0.00029315,2]
[377438634,1754413845639,-460.0,0.00029315,2]
[377438635,1754413845649,-460.0,0.00029315,2]
[377438636,1754413845661,-504.77,0.00029315,2]
[377438637,1754413845671,-460.0,0.00029315,2]
[377438638,1754413845681,-888.53,0.00029315,2]
[377438639,1754413845692,-460.0,0.00029315,2]
[377438640,1754413845705,-460.0,0.00029315,2]
[377438641,1754413845715,-460.0,0.00029315,2]
[377438642,1754413845725,-514.29,0.00029315,2]
[377438643,1754413845737,-360.0,0.00029485,2]
[377438644,1754413845748,-679.3,0.0002955,7]
[377438645,1754413845757,-674.82,0.00029589,2]
[377438646,1754413845766,-1651.69,0.00029589,2]
[377438647,1754413845777,-460.0,0.00029589,2]
[377438648,1754413845786,-5818.94849364,0.00029589,2]
[377438649,1754413845796,-560.55,0.00029589,2]
[377438650,1754413845807,-535.6,0.00029589,2]
[377438651,1754413845818,-1815.42,0.00029589,2]
[377438652,1754413845827,-1356.54,0.00029589,2]
[377438653,1754413845837,-460.0,0.00029589,2]
[377438654,1754413845847,-460.0,0.00029589,2]
[377438656,1754413845857,-41146.1,0.00029589,2]
[377438657,1754413845867,-579.48,0.00029589,2]
[377438658,1754413845876,-460.0,0.00029589,2]
[377438659,1754413845887,-492.63,0.00029589,2]
[377438660,1754413845897,-405.2,0.00029589,2]
[377438661,1754413845907,-460.0,0.00029589,2]
[377438662,1754413845916,-460.0,0.00029589,2]
[377438663,1754413845926,-863.0,0.00029589,2]
[377438664,1754413845935,-460.0,0.00029589,2]
[377438665,1754413845945,-1085.24,0.00029589,2]
[377438666,1754413845954,-845.72,0.00029589,2]
[377438667,1754413845964,-460.0,0.00029589,2]
[377438668,1754413845973,-1266.46,0.00029589,2]
[377438669,1754413845983,-753.0,0.00029589,2]
[377438670,1754413845992,-460.0,0.00029589,2]
[377438671,1754413846003,-523.58,0.00029589,2]
[377438672,1754413846013,-488.09,0.00029589,2]
[377438673,1754413846023,-460.0,0.00029589,2]
[377438674,1754413846032,-460.0,0.00029589,2]
[377438675,1754413846041,-460.0,0.00029589,2]
[377438676,1754413846053,-718.72,0.00029589,2]
[377438677,1754413846063,-460.0,0.00029589,2]
[377438678,1754413846073,-460.0,0.00029589,2]
[377438679,1754413846082,-460.0,0.00029589,2]
[377438680,1754413846098,-504.77,0.00029589,2]
[377438681,1754413846107,-460.0,0.00029589,2]
[377438682,1754413846118,-888.53,0.00029589,2]
[377438683,1754413846127,-460.0,0.00029589,2]
[377438684,1754413846136,-460.0,0.00029589,2]
[377438685,1754413846145,-460.0,0.00029589,2]
[377438686,1754413846155,-514.29,0.00029589,2]
[377438687,1754413846165,-1890.18,0.000296,2]
[377438688,1754413846174,-674.82,0.00029863,2]
[377438689,1754413846185,-1651.69,0.00029863,2]
[377438690,1754413846195,-460.0,0.00029863,2]
[377438691,1754413846205,-560.55,0.00029863,2]
[377438692,1754413846214,-535.6,0.00029863,2]
[377438693,1754413846224,-1815.42,0.00029863,2]
[377438694,1754413846233,-1356.54,0.00029863,2]
[377438695,1754413846242,-460.0,0.00029863,2]
[377438696,1754413846253,-277.27799738,0.00029863,2]
[377438697,1754413846263,-41146.1,0.00029863,2]
[377438698,1754413846273,-579.48,0.00029863,2]
[377438699,1754413846282,-460.0,0.00029863,2]
[377438700,1754413846292,-492.63,0.00029863,2]
[377438701,1754413846303,-460.0,0.00029863,2]
[377438702,1754413846312,-460.0,0.00029863,2]
[377438703,1754413846322,-863.0,0.00029863,2]
[377438704,1754413846333,-460.0,0.00029863,2]
[377438705,1754413846342,-1085.24,0.00029863,2]
[377438706,1754413846351,-845.72,0.00029863,2]
[377438707,1754413846360,-460.0,0.00029863,2]
[377438708,1754413846368,-1266.46,0.00029863,2]
[377438709,1754413846377,-753.0,0.00029863,2]
[377438710,1754413846386,-460.0,0.00029863,2]
[377438711,1754413846396,-523.58,0.00029863,2]
[377438712,1754413846405,-488.09,0.00029863,2]
[377438713,1754413846415,-460.0,0.00029863,2]
[377438714,1754413846425,-460.0,0.00029863,2]
[377438715,1754413846434,-460.0,0.00029863,2]
[377438716,1754413846443,-718.72,0.00029863,2]
[377438717,1754413846452,-460.0,0.00029863,2]
[377438718,1754413846462,-460.0,0.00029863,2]
[377438719,1754413846472,-460.0,0.00029863,2]
[377438720,1754413846481,-504.77,0.00029863,2]
[377438721,1754413846491,-460.0,0.00029863,2]
[377438722,1754413846500,-888.53,0.00029863,2]
[377438723,1754413846510,-460.0,0.00029863,2]
[377438724,1754413846519,-460.0,0.00029863,2]
[377438725,1754413846528,-460.0,0.00029863,2]
[377438726,1754413846538,-514.29,0.00029863,2]
[377438727,1754413846548,-735.16940006,0.00029949,24]
[377438728,1754413846560,-188.480784,0.00029965,7]
[377438729,1754413846570,-400.0,0.0003,2]
[377438730,1754413846579,-400.0,0.0003,2]
[377438731,1754413846589,-596.0,0.0003,2]
[377438732,1754413846598,-10000.3547559,0.0003,3]
[377438733,1754413846607,-160.0,0.0003,3]
[377438734,1754413846617,-1500.0,0.0003,3]
[377438735,1754413846626,-160.0,0.0003,3]
[377438736,1754413846635,-151.61367767,0.0003,14]
[377438737,1754413846644,-216.4206905,0.0003,3]
[377438738,1754413846653,-4000.0,0.0003,4]
[377438739,1754413846664,-160.0,0.0003,3]
[377438740,1754413846675,-151.0,0.0003,14]
[377438741,1754413846684,-258.0,0.0003,14]
[377438742,1754413846695,-1500.0,0.00030012,7]
[377438743,1754413846706,-460.0,0.00030033,2]
[377438745,1754413846715,-38.41537471,0.00030036,2]
[377438749,1754413846813,-604.90997089,0.00030036,2]
[377438750,1754413846828,-1094.72926984,0.00030036,2]
[377438751,1754413847121,-500.0,0.00026456,2]
[377438752,1754413847131,-1.08328675,0.00027397,2]
[377438753,1754413847143,-458.91671325,0.00027397,2]
[377438754,1754413847153,-460.0,0.00027671,2]
[377438755,1754413847164,-312.16666667,0.00028,3]
[377438756,1754413847173,-842.25606042,0.0003,3]
[377438757,1754413847183,-5888.46694183,0.00030036,2]
[377438758,1754413847195,-385.26511859,0.00030036,2]
[377438759,1754413847204,-151.0,0.0003004,14]
[377438760,1754413847215,-151.0,0.0003008,14]
[377438761,1754413847225,-151.0,0.0003012,14]
[377438762,1754413847234,-674.82,0.00030136,2]
[377438763,1754413847246,-145.18274219,0.00030136,2]
[377438764,1754413847258,-354.81725781,0.00030136,2]
[377438765,1754413847268,-97.67530023,0.00030136,2]
[377438766,1754413847279,-303.81059378,0.00030136,2]
[377438767,1754413847507,-1348.78,0.00027968,10]
[377438768,1754413847516,-98.51410599,0.00030136,2]
[377438769,1754413847526,-500.0,0.00030136,2]
[377438770,1754413847536,-500.0,0.00030136,2]
[377438771,1754413847545,-1651.69,0.00030136,2]
[377438772,1754413847555,-460.0,0.00030136,2]
[377438773,1754413847564,-560.55,0.00030136,2]
[377438774,1754413847574,-535.6,0.00030136,2]
[377438775,1754413847583,-1815.42,0.00030136,2]
[377438776,1754413847592,-460.0,0.00030136,2]
[377438777,1754413847602,-9460.09032149,0.00030136,2]
[377438778,1754413847665,-5619.11371016,0.00030136,2]
[377439865,1754413880589,-152.0,0.00026358,2]
[377440487,1754413886760,-158.0,0.00026358,2]
[377440774,1754413889888,-302.0,0.00026348,10]
[377441037,1754413892360,-300.0,0.00026348,10]
[377441287,1754413895298,-152.38,0.00026348,10]
[377441380,1754413897231,-159.04096,0.00026348,10]
[377445001,1754413941481,-151.88,0.00025363,7]
[377445002,1754413944264,-3.49,0.00025363,7]
[377445003,1754413944287,-155.37,0.00025994,7]
[377445004,1754413944308,-121.58197443,0.00026248,2]
[377445005,1754413946407,-70.53988972,0.00026248,2]
[377445007,1754413950439,-863.33,0.00026348,10]
[377445008,1754413950460,-827.85,0.00026348,10]
[377445009,1754413950481,-689.88,0.00026348,10]
[377445010,1754413950502,-300.0,0.00026357,2]
[377445011,1754413950523,-2937.94,0.00026358,2]
[377445013,1754413969533,-175.974682,0.00026213,2]
[377445014,1754413974791,-153.52,0.00026213,2]
[377445015,1754413977017,-151.88,0.00026213,2]
[377445016,1754413980774,-153.52,0.00026213,2]
[377445017,1754413982447,-173.09147578,0.00026213,2]
[377445019,1754413986341,-259.47830683,0.00026213,2]
[377445020,1754413989851,-163.09,0.00026213,2]
[377445021,1754413991997,-151.88,0.00025382,2]
[377445022,1754413993635,-318.53129967,0.00025382,2]
[377445024,1754413997378,-219.54852422,0.00025382,2]
[377445025,1754414001405,-314.965955,0.00025382,2]
[377445026,1754414004241,-194.05105617,0.00025382,2]
[377445027,1754414004503,-44.90016494,0.00025382,2]
[377445028,1754414004532,-948.67002264,0.00026213,2]
[377445029,1754414004561,-160.15683092,0.00026248,2]
[377445030,1754414004591,-332.7,0.00026337,10]
[377445031,1754414004770,-300.0,0.00026347,2]
[377445032,1754414004902,-16111.47700984,0.00026348,2]
[377445033,1754414004930,-20000.0,0.00026348,2]
[377445034,1754414004944,-20000.0,0.00026348,2]
[377445035,1754414005055,-20000.0,0.00026348,2]
[377445036,1754414005307,-20000.0,0.00026348,2]
[377445037,1754414005494,-20000.0,0.00026348,2]
[377445038,1754414005639,-20000.0,0.00026348,2]
[377445040,1754414005803,-20000.0,0.00026348,2]
[377445041,1754414005958,-20000.0,0.00026348,2]
[377445042,1754414006124,-20000.0,0.00026348,2]
[377445043,1754414006277,-8339.46036316,0.00026348,2]
[377445044,1754414006315,-3321.07927368,0.00026348,2]
[377445045,1754414006467,-4860.24650388,0.00026348,2]
[377445046,1754414006489,-10279.50699224,0.00026348,2]
[377445047,1754414006649,-1046.59,0.00026348,3]
[377445048,1754414006678,-872.16,0.00026348,3]
[377445049,1754414006707,-436.08,0.00026348,3]
[377445050,1754414006740,-218.04,0.00026348,3]
[377445051,1754414006771,-654.16,0.00026348,3]
[377445052,1754414006801,-330.27627874,0.00026357,2]
[377445053,1754414006830,-366.72116026,0.00026357,2]
[377445054,1754414006860,-275.4371425,0.00026357,2]
[377445055,1754414006888,-303.84197912,0.00026357,2]
[377445056,1754414006919,-500.0,0.00026357,2]
[377445057,1754414006949,-500.0,0.00026357,2]
[377445058,1754414006978,-337.8226804,0.00026357,2]
[377445059,1754414007008,-500.0,0.00026357,2]
[377445060,1754414007037,-500.0,0.00026357,2]
[377445061,1754414007066,-174.44997143,0.00026357,2]
[377445062,1754414007095,-500.0,0.00026357,2]
[377445063,1754414007123,-245.26618536,0.00026357,2]
[377445064,1754414013818,519.45,0.00026348,10]
[377445065,1754414017463,-160.0,0.00026358,2]
[377445066,1754414017486,-33510.0,0.00026358,2]
[377445067,1754414025435,432.87,0.00026348,10]
[377445068,1754414027319,3525.98920438,0.0002599,2]
[377445069,1754414027340,20000.0,0.0002599,2]
[377445070,1754414027362,20000.0,0.0002599,2]
[377445071,1754414027383,20000.0,0.0002599,2]
[377445072,1754414027404,20000.0,0.0002599,2]
[377445073,1754414027425,16474.01079562,0.0002599,2]
[377445074,1754414036014,360.73,0.00026348,10]
[377445078,1754414041347,269.304416,0.00013699,2]
[377445079,1754414041587,251.36407842,0.00025205,2]
[377445080,1754414041795,269.304416,0.00020187,2]
[377445081,1754414041889,2375.28629396,0.00026357,2]
[377445082,1754414041913,31.99097646,0.00026357,2]
[377445083,1754414044158,500.0,0.00026357,2]
[377445084,1754414044186,470.69201939,0.00026357,2]
[377445085,1754414044215,500.0,0.00026357,2]
[377445086,1754414044244,500.0,0.00026357,2]
[377445087,1754414044278,500.0,0.00026357,2]
[377445088,1754414044311,500.0,0.00026357,2]
[377445089,1754414044347,500.0,0.00026357,2]
[377445090,1754414044376,500.0,0.00026357,2]
[377445091,1754414044406,373.5,0.00026357,2]
[377445092,1754414044442,500.0,0.00026357,2]
[377445093,1754414044483,500.0,0.00026357,2]
[377445094,1754414044514,500.0,0.00026357,2]
[377445095,1754414044543,500.0,0.00026357,2]
[377445096,1754414044573,500.0,0.00026357,2]
[377445097,1754414044613,500.0,0.00026357,2]
[377445098,1754414044646,465.16776788,0.00026357,2]
[377445099,1754414044675,500.0,0.00026357,2]
[377445100,1754414044708,500.0,0.00026357,2]
[377445101,1754414044744,500.0,0.00026357,2]
[377445102,1754414044785,500.0,0.00026357,2]
[377445103,1754414044825,500.0,0.00026357,2]
[377445104,1754414044858,500.0,0.00026357,2]
[377445105,1754414044893,500.0,0.00026357,2]
[377445106,1754414044925,500.0,0.00026357,2]
[377445107,1754414047351,300.61,0.00026348,10]
[377445108,1754414050042,500.0,0.00026357,2]
[377445109,1754414055465,489.02,0.00026348,3]
[377445110,1754414058375,250.51,0.00026348,10]
[377445111,1754414061761,154.4178869,0.00026357,2]
[377445112,1754414061977,500.0,0.00026357,2]
[377445113,1754414062035,404.51981187,0.00026357,2]
[377445114,1754414062448,616.25045148,0.00026357,2]
[377445115,1754414062596,409.68522204,0.00026357,2]
[377445116,1754414063124,500.0,0.00026357,2]
[377445117,1754414063150,500.0,0.00026357,2]
[377445118,1754414063180,500.0,0.00026357,2]
[377445119,1754414063206,500.0,0.00026357,2]
[377445120,1754414063232,500.0,0.00026357,2]
[377445121,1754414063275,397.56883336,0.00026357,2]
[377445122,1754414063305,500.0,0.00026357,2]
[377445123,1754414063333,500.0,0.00026357,2]
[377445124,1754414063361,500.0,0.00026357,2]
[377445125,1754414063390,136.06703062,0.00026357,2]
[377445126,1754414063414,363.93296938,0.00026357,2]
[377445127,1754414063443,500.0,0.00026357,2]
[377445128,1754414063472,500.0,0.00026357,2]
[377445129,1754414063501,500.0,0.00026357,2]
[377445130,1754414063530,500.0,0.00026357,2]
[377445131,1754414063558,500.0,0.00026357,2]
[377445132,1754414063592,500.0,0.00026357,2]
[377445133,1754414063630,220.03448629,0.00026357,2]
[377445134,1754414066176,1314.74,0.00026348,3]
[377445135,1754414070196,507.18,0.00026348,10]
[377445136,1754414071918,339.28591595,0.00026357,2]
[377445137,1754414072799,500.0,0.00026357,2]
[377445138,1754414072847,500.0,0.00026357,2]
[377445139,1754414072878,500.0,0.00026357,2]
[377445140,1754414072913,500.0,0.00026357,2]
[377445141,1754414072944,500.0,0.00026357,2]
[377445142,1754414072975,500.0,0.00026357,2]
[377445143,1754414073008,500.0,0.00026357,2]
[377445144,1754414073038,500.0,0.00026357,2]
[377445145,1754414073069,500.0,0.00026357,2]
[377445146,1754414073105,500.0,0.00026357,2]
[377445147,1754414073135,436.15928137,0.00026357,2]
[377445148,1754414073173,500.0,0.00026357,2]
[377445149,1754414073214,500.0,0.00026357,2]
[377445150,1754414073248,500.0,0.00026357,2]
[377445151,1754414073358,196.78542593,0.00026357,2]
[377445152,1754414073437,500.0,0.00026357,2]
[377445153,1754414073517,500.0,0.00026357,2]
[377445154,1754414073564,500.0,0.00026357,2]
[377445155,1754414074951,1319.393768,0.00025624,2]
[377445156,1754414076889,657.37,0.00026348,3]
[377445157,1754414080431,986.01267184,0.00026357,2]
[377445158,1754414080613,422.65,0.00026348,10]
[377445159,1754414082729,500.0,0.00026357,2]
[377445160,1754414082762,500.0,0.00026357,2]
[377445161,1754414082804,500.0,0.00026357,2]
[377445162,1754414082834,500.0,0.00026357,2]
[377445163,1754414082863,236.45548124,0.00026357,2]
[377445164,1754414082887,263.54451876,0.00026357,2]
[377445165,1754414082920,500.0,0.00026357,2]
[377445166,1754414082950,500.0,0.00026357,2]
[377445167,1754414082979,500.0,0.00026357,2]
[377445168,1754414083007,500.0,0.00026357,2]
[377445169,1754414083040,500.0,0.00026357,2]
[377445170,1754414083078,500.0,0.00026357,2]
[377445171,1754414083111,500.0,0.00026357,2]
[377445172,1754414083285,500.0,0.00026357,2]
[377445173,1754414083315,500.0,0.00026357,2]